bitfinex/quotes_ETHUSD_20250507
["timestamp","ask_amount","ask_price","bid_price","bid_amount"]
[1746584740474,3.0,1829.6,1829.4,5.58164497]
[1746584740994,3.0,1829.6,1829.4,0.11537188]
[1746584741171,3.0,1829.6,1829.5,5.4659743]
[1746584741371,3.0,1829.6,1829.5,0.11538632]
[1746584741772,3.0,1829.6,1829.5,5.58136062]
[1746584742009,3.0,1829.6,1829.5,0.11538632]
[1746584743013,3.0,1829.6,1829.5,5.58136062]
[1746584743197,6.004,1829.7,1829.5,5.58136062]
[1746584743504,6.004,1829.7,1829.6,5.46567555]
[1746584743703,6.004,1829.7,1829.6,0.11336757]
[1746584744605,6.50230718,1829.7,1829.6,0.11336757]
[1746584744906,6.50230718,1829.7,1829.3,10.9328423]
[1746584744907,13.23951045,1829.7,1829.3,10.9328423]
[1746584745108,12.74120327,1829.7,1829.6,0.11336757]
[1746584745310,0.7562,1829.6,1829.2,5.46672261]
[1746584745518,6.22199097,1829.6,1829.2,11.46472261]
[1746584745682,6.22199097,1829.6,1829.2,16.93139446]
[1746584745883,0.49872513,1829.5,1829.3,5.46646461]
[1746584746303,3.07839634,1829.6,1829.3,5.46646461]
[1746584747087,0.49929409,1829.5,1829.2,16.93135314]
[1746584747289,0.49929409,1829.5,1829.3,5.46645309]
[1746584747488,0.49929409,1829.4,1829.3,5.57947848]
[1746584747888,0.49929409,1829.5,1829.4,5.46627309]
[1746584748420,0.49929409,1829.5,1829.4,0.11292021]
[1746584748603,0.49929409,1829.5,1829.4,5.5791933]
[1746584748800,0.49929409,1829.5,1829.4,0.11292021]
[1746584749197,0.9248435,1829.5,1829.4,0.11292021]
[1746584749499,6.39088499,1829.5,1829.2,5.996]
[1746584749694,6.39088499,1829.5,1829.4,0.1135779]
[1746584749894,6.39088499,1829.5,1829.2,5.996]
[1746584750309,6.39088499,1829.5,1829.3,0.11368308]
[1746584750515,1.13838259,1829.4,1829.1,11.46204199]
[1746584750715,0.49929409,1829.4,1829.1,11.46204199]
[1746584751341,0.49929409,1829.3,1829.1,5.46716438]
[1746584751635,0.49929409,1829.3,1829.0,12.2412961]
[1746584751931,0.49929409,1829.2,1829.1,5.46716964]
[1746584752230,0.49929409,1829.3,1829.1,10.93433928]
[1746584752547,0.49929409,1829.2,1829.1,5.46716964]
[1746584753329,0.49929409,1829.3,1829.1,10.93433928]
[1746584753493,0.49929409,1829.3,1829.2,5.46687076]
[1746584759141,0.49929409,1829.3,1828.8,5.46796648]
[1746584759142,0.7567,1829.2,1828.8,5.46796648]
[1746584759438,6.22368713,1829.2,1828.7,5.46810726]
[1746584759735,9.22358008,1829.2,1828.8,5.46787935]
[1746584759932,3.7567,1829.2,1828.9,5.46775975]
[1746584760138,0.49929409,1829.1,1828.8,5.46788254]
[1746584760338,0.49929409,1829.1,1828.8,5.4678742]
[1746584760644,3.8247,1829.4,1829.1,5.46704007]
[1746584760850,9.2910465,1829.4,1829.0,5.46746856]
[1746584760997,9.29114818,1829.4,1829.0,5.46746856]
[1746584761598,0.50223228,1829.3,1829.0,5.46746856]
[1746584761904,0.50223228,1829.2,1829.0,5.46746856]
[1746584762108,0.50223228,1829.2,1828.9,6.21894355]
[1746584762402,0.50223228,1829.1,1829.0,5.58230441]
[1746584763334,0.50223228,1829.1,1829.0,5.63697302]
[1746584763538,0.50223228,1829.1,1829.0,5.58230441]
[1746584763909,0.50223228,1829.1,1829.0,0.11483585]
[1746584765217,0.50223228,1829.1,1828.8,5.46786504]
[1746584765739,0.50223228,1829.1,1828.9,5.58261232]
[1746584766043,0.50223228,1829.0,1828.9,5.58261232]
[1746584768919,0.50223228,1829.0,1828.9,0.11494107]
[1746584769119,0.50223228,1829.0,1828.8,5.46786504]
[1746584769323,0.50223228,1829.0,1828.9,0.11601757]
[1746584769512,0.50223228,1829.0,1828.8,5.46786504]
[1746584769713,0.50223228,1829.0,1828.9,5.46776751]
[1746584769929,0.7778,1829.1,1828.9,0.11601757]
[1746584770112,0.7778,1829.1,1828.7,6.29609617]
[1746584770310,5.46758871,1829.0,1828.6,5.46853638]
[1746584770553,0.54675887,1828.9,1828.6,10.93703503]
[1746584770844,0.7772,1828.8,1828.6,5.46849865]
[1746584771046,1.27975891,1828.8,1828.5,6.23155725]
[1746584771219,6.7479586,1828.8,1828.4,11.45115706]
[1746584771421,0.50255891,1828.7,1828.5,5.46895199]
[1746584771626,0.50255891,1828.7,1828.4,5.982]
[1746584771826,0.50255891,1828.7,1828.3,9.93036642]
[1746584771827,6.27338504,1828.6,1828.3,3.65448034]
[1746584772013,5.46897248,1828.5,1828.3,3.65448034]
[1746584772212,6.68498158,1828.6,1828.3,3.65448034]
[1746584772562,0.66849816,1828.5,1828.3,3.65448034]
[1746584772727,1.2161234,1828.6,1828.3,9.12392483]
[1746584772922,0.8047,1828.6,1828.4,5.46925671]
[1746584773111,4.2587692,1829.0,1828.4,5.46925671]
[1746584773112,0.7607,1829.0,1828.7,5.46811557]
[1746584773307,3.7607,1829.0,1828.8,5.46789967]
[1746584773754,3.7607,1829.0,1828.9,5.46776751]
[1746584773912,5.985,1829.1,1828.9,5.46776751]
[1746584775148,5.985,1829.1,1829.0,5.46746856]
[1746584775316,6.7457,1829.2,1829.0,5.46746856]
[1746584775747,0.7622,1829.1,1828.9,5.46763423]
[1746584776545,0.7622,1829.1,1828.8,5.46806649]
[1746584776751,6.22938648,1829.1,1828.7,5.46826187]
[1746584777059,8.46746856,1829.0,1828.8,0.11869475]
[1746584777368,6.22076751,1828.9,1828.6,5.979]
[1746584777569,0.753,1828.9,1828.6,11.44764723]
[1746584777974,0.753,1828.9,1828.6,5.46864723]
[1746584778648,0.753,1828.9,1828.7,5.46820326]
[1746584778854,3.7822,1829.1,1828.8,5.46797047]
[1746584779151,5.34645873,1829.1,1828.8,5.46797047]
[1746584780172,5.34645873,1829.1,1828.9,5.46773563]
[1746584780173,0.7822,1829.1,1828.9,5.46773563]
[1746584781468,0.7822,1829.1,1828.8,5.46788231]
[1746584781670,0.7822,1829.1,1828.9,5.467715]
[1746584781849,9.7551,1829.2,1829.0,5.46735396]
[1746584782033,9.7551,1829.2,1828.9,5.46758459]
[1746584782543,9.7551,1829.2,1828.9,5.46754026]
[1746584783244,9.7551,1829.2,1828.9,5.46751649]
[1746584783976,0.50251366,1829.1,1828.9,5.46751649]
[1746584784180,0.50251366,1829.1,1829.0,5.46746856]
[1746584784540,0.50251366,1829.1,1828.9,6.01426814]
[1746584785038,0.50251366,1829.0,1828.9,6.01426814]
[1746584785543,0.50251366,1829.1,1828.9,11.48183898]
[1746584785739,0.50251366,1829.1,1829.0,5.46746856]
[1746584785967,0.50251366,1829.1,1829.0,6.26356856]
[1746584786173,0.50251366,1829.1,1829.0,7.41174223]
[1746584786671,0.50251366,1829.2,1829.1,5.46716964]
[1746584787084,0.50251366,1829.2,1829.1,5.52183787]
[1746584787241,3.50251366,1829.3,1829.2,5.46687076]
[1746584788244,3.50251366,1829.3,1829.1,5.46696541]
[1746584788642,0.50251366,1829.2,1829.1,5.46696541]
[1746584788845,0.50251366,1829.2,1829.1,6.75482321]
[1746584790091,0.50251366,1829.2,1829.1,5.46696541]
[1746584792486,0.50251366,1829.2,1829.1,5.58606246]
[1746584794750,0.50251366,1829.2,1829.1,6.34816246]
[1746584795181,0.50251366,1829.2,1829.1,6.40283073]
[1746584795615,0.50251366,1829.5,1829.4,5.46627309]
[1746584795989,0.50251366,1829.5,1829.4,6.94454979]
[1746584796204,0.50251366,1829.7,1829.5,5.46577773]
[1746584796500,0.50251366,1829.7,1829.6,0.11522139]
[1746584797415,0.50251366,1829.7,1829.6,5.58089694]
[1746584797613,0.50251366,1829.7,1829.6,0.11522139]
[1746584799011,0.50251366,1829.7,1829.6,5.58089694]
[1746584799214,0.50251366,1829.7,1829.6,6.13899731]
[1746584800215,0.50251366,1829.7,1829.6,6.19365173]
[1746584800380,0.50251366,1829.7,1829.6,6.13899731]
[1746584800906,5.966,1829.9,1829.7,5.46518689]
[1746584801406,5.966,1829.9,1829.8,0.11321736]
[1746584801586,6.46898492,1829.9,1829.8,0.11321736]
[1746584801916,6.46898492,1829.9,1829.8,5.57829551]
[1746584802549,6.46898492,1829.9,1829.8,0.11321736]
[1746584803217,15.73766441,1829.9,1829.8,0.11321736]
[1746584803422,12.39311168,1829.9,1829.8,0.11321736]
[1746584803588,3.0,1829.8,1829.6,11.42757125]
[1746584803929,0.50298492,1829.7,1829.4,5.46609697]
[1746584804592,0.50298492,1829.7,1829.5,5.46596656]
[1746584805327,0.50298492,1829.7,1829.5,5.46574588]
[1746584805797,0.50298492,1829.7,1829.6,5.46567555]
[1746584806304,3.0,1829.8,1829.7,5.46537683]
[1746584806729,3.50306362,1829.8,1829.6,10.9311784]
[1746584806928,3.50306362,1829.8,1829.6,5.46550285]
[1746584807228,3.50306362,1829.8,1829.5,6.26991073]
[1746584807391,0.50306362,1829.7,1829.5,11.73571155]
[1746584807591,0.50306362,1829.7,1829.6,0.1097806]
[1746584809141,1.27206362,1829.7,1829.6,0.1097806]
[1746584809339,7.08774681,1829.7,1829.3,16.97276478]
[1746584809491,0.50306362,1829.6,1829.3,16.97276478]
[1746584809693,0.50306362,1829.6,1829.3,11.50634991]
[1746584809898,0.50306362,1829.6,1829.2,16.89036424]
[1746584810115,0.50306362,1829.5,1829.3,5.4664084]
[1746584810531,6.58468319,1829.7,1829.3,5.4664084]
[1746584810710,6.58468319,1829.7,1829.3,5.46639849]
[1746584811345,0.5036818,1829.6,1829.3,5.46639849]
[1746584811543,0.5036818,1829.5,1829.3,5.46639849]
[1746584811732,0.5036818,1829.4,1829.3,5.46639849]
[1746584812451,0.5036818,1829.4,1829.3,5.46657191]
[1746584816361,0.5036818,1829.4,1829.3,7.70227372]
[1746584816522,0.5036818,1829.4,1829.3,5.46657191]
[1746584819947,0.5036818,1829.4,1829.2,11.41770049]
[1746584819948,1.3063818,1829.4,1829.2,11.41770049]
[1746584820469,0.5036818,1829.3,1829.2,11.41767327]
[1746584822493,0.5036818,1829.3,1829.2,11.5306245]
[1746584823099,0.5036818,1829.3,1829.2,0.11295123]
[1746584823295,5.97025371,1829.3,1829.2,0.11295123]
[1746584823480,7.17792512,1829.3,1829.0,5.46745389]
[1746584823686,0.5036818,1829.2,1829.1,0.10388472]
[1746584824899,0.5036818,1829.2,1828.9,11.41657583]
[1746584824900,6.77475256,1829.2,1828.9,11.41657583]
[1746584825252,1.3078818,1829.2,1828.9,5.46757583]
[1746584825794,0.5036818,1829.1,1828.9,5.46757583]
[1746584825989,0.8042,1829.2,1828.9,10.93511205]
[1746584826300,0.5038114,1829.0,1828.9,5.46753622]
[1746584828841,0.5038114,1829.0,1828.8,5.4679439]
[1746584829172,0.5038114,1829.0,1828.7,11.414259]
[1746584829373,0.5038114,1828.9,1828.7,11.41414482]
[1746584829783,5.46729014,1829.1,1828.7,11.41414482]
[1746584830003,0.54672901,1829.0,1828.7,11.41414482]
[1746584830398,0.7865,1828.9,1828.5,6.28049912]
[1746584830593,0.7865,1828.9,1828.3,5.4693621]
[1746584830594,5.4682,1828.8,1828.3,5.4693621]
[1746584830789,5.4682,1828.8,1828.3,11.4143621]
[1746584830790,6.27109885,1828.7,1828.3,11.4143621]
[1746584830993,0.8027,1828.7,1828.2,9.9325972]
[1746584831307,0.8027,1828.7,1828.3,5.945]
[1746584831308,5.97172028,1828.6,1828.3,5.945]
[1746584831478,0.50299023,1828.6,1828.3,11.41453746]
[1746584831682,12.64750024,1828.7,1828.3,11.41453746]
[1746584832005,8.46866882,1828.6,1828.2,15.87754961]
[1746584832709,0.50209163,1828.5,1828.2,15.87754961]
[1746584833004,0.50209163,1828.5,1828.3,5.46954722]
[1746584833168,3.0,1828.6,1828.3,5.46954722]
[1746584833608,10.07489029,1828.6,1828.2,15.87655147]
[1746584834103,4.60619509,1828.6,1828.2,21.34624952]
[1746584834399,4.60619509,1828.6,1828.3,5.46951759]
[1746584834769,10.07486035,1828.6,1828.2,12.22206571]
[1746584836000,10.07486035,1828.6,1828.2,5.46966571]
[1746584836305,10.07486035,1828.6,1828.2,10.93929614]
[1746584836612,0.5016278,1828.5,1828.3,5.46946271]
[1746584837109,3.0,1828.6,1828.3,5.46946271]
[1746584837706,3.0,1828.6,1828.2,5.46963043]
[1746584837908,8.4687391,1828.6,1828.2,5.46962948]
[1746584839008,3.0,1828.6,1828.2,5.46986106]
[1746584839307,3.0,1828.6,1828.4,5.46910911]
[1746584840211,7.16408572,1828.7,1828.4,5.46910911]
[1746584841777,0.7632,1828.8,1828.6,5.46848474]
[1746584842108,3.7632,1828.9,1828.6,5.46848474]
[1746584842307,9.23098792,1828.9,1828.5,5.46876457]
[1746584842509,0.50153133,1828.8,1828.5,5.46876457]
[1746584842826,0.50153133,1828.8,1828.7,5.4683655]
[1746584843034,6.23039232,1829.1,1828.7,10.936731]
[1746584843375,0.50169821,1829.0,1828.8,5.46805222]
[1746584844026,6.63578772,1829.1,1828.8,5.46805222]
[1746584844578,1.1685954,1829.1,1828.8,5.46805222]
[1746584844776,0.50182584,1829.0,1828.8,5.46805222]
[1746584845411,1.1685954,1829.1,1828.8,5.46805222]
[1746584846202,1.1685954,1829.1,1828.8,5.46784055]
[1746584846511,0.50218118,1829.0,1828.8,5.46784055]
[1746584847085,0.7632,1829.1,1828.8,5.46784055]
[1746584848198,0.50236855,1829.0,1828.8,5.46784055]
[1746584848605,0.50236855,1828.9,1828.8,5.46784055]
[1746584848780,0.50236855,1828.9,1828.6,5.46855032]
[1746584848985,0.50236855,1828.9,1828.6,5.935]
[1746584849210,0.50236855,1828.9,1828.7,5.46820956]
[1746584849681,0.50236855,1829.0,1828.7,5.46820956]
[1746584850219,0.50236855,1828.9,1828.7,5.46820956]
[1746584850400,0.50236855,1829.0,1828.7,5.46820956]
[1746584850817,0.50236855,1828.9,1828.7,5.46820956]
[1746584851535,0.50236855,1828.9,1828.7,6.61653937]
[1746584851710,0.50236855,1829.0,1828.8,5.46806649]
[1746584852536,0.50236855,1828.9,1828.8,5.46806649]
[1746584852924,0.50236855,1829.0,1828.8,5.46806649]
[1746584853505,0.50236855,1828.9,1828.8,5.46806649]
[1746584853908,0.50236855,1829.0,1828.8,5.46806649]
[1746584854434,0.50236855,1828.9,1828.8,5.46806649]
[1746584854637,0.50236855,1829.0,1828.8,5.46806649]
[1746584854801,0.50236855,1829.0,1828.8,5.46794883]
[1746584855203,0.50236855,1828.9,1828.8,5.46794883]
[1746584855632,0.50236855,1829.0,1828.8,5.46794883]
[1746584855934,0.50236855,1828.9,1828.8,5.46794883]
[1746584856336,0.50236855,1829.0,1828.8,5.46794883]
[1746584856941,0.50236855,1828.9,1828.8,5.46794883]
[1746584862240,0.50236855,1828.9,1828.7,5.46819291]
[1746584862440,0.50236855,1828.9,1828.8,5.46806649]
[1746584864133,0.50236855,1828.9,1828.7,5.46819291]
[1746584864809,17.41107443,1829.1,1828.7,5.46819291]
[1746584864810,0.50236855,1828.8,1828.7,5.46819291]
[1746584865745,0.50236855,1828.8,1828.6,10.93699505]
[1746584865909,0.50236855,1828.8,1828.5,13.32340401]
[1746584866111,0.50236855,1828.7,1828.5,5.46879596]
[1746584866729,0.50236855,1828.6,1828.5,5.46879596]
[1746584871814,6.24097757,1829.0,1828.6,5.46840839]
[1746584872452,0.50510343,1828.9,1828.6,5.46840839]
[1746584873037,0.50510343,1828.8,1828.6,5.46840839]
[1746584873345,0.50510343,1828.7,1828.6,5.46840839]
[1746584879646,0.50510343,1828.7,1828.5,6.26131875]
[1746584879647,1.27230343,1828.7,1828.5,10.93761289]
[1746584879947,0.7672,1828.7,1828.6,5.46866455]
[1746584880756,1.27242154,1828.7,1828.6,5.46866455]
[1746584881224,0.50522154,1828.7,1828.6,5.46866455]
[1746584881846,0.50522154,1828.7,1828.6,5.52334769]
[1746584882122,0.50522154,1828.7,1828.6,6.62256187]
[1746584882570,0.50522154,1828.7,1828.6,7.43436187]
[1746584882718,0.50522154,1828.7,1828.6,9.73812229]
[1746584883776,0.8084,1829.3,1829.1,5.46697789]
[1746584884246,0.50538303,1829.2,1829.1,5.46697789]
[1746584884820,0.50538303,1829.2,1829.1,8.00007504]
[1746584885056,0.50538303,1829.2,1829.1,7.94540688]
[1746584885258,0.50538303,1829.2,1829.1,8.00006718]
[1746584885434,0.50538303,1829.2,1829.1,14.59006729]
[1746584885629,0.50538303,1829.2,1829.1,14.53540688]
[1746584885841,0.7505,1829.8,1829.5,5.46577219]
[1746584886161,0.7505,1829.8,1829.5,11.37477219]
[1746584886519,0.50429645,1829.7,1829.5,11.37477219]
[1746584886724,0.50429645,1829.7,1829.5,13.05886613]
[1746584886932,0.50429645,1829.7,1829.5,7.59309394]
[1746584887137,0.50429645,1829.7,1829.5,5.909]
[1746584887561,0.50429645,1829.6,1829.5,5.909]
[1746584887861,0.50429645,1829.6,1829.5,5.9006894]
[1746584888035,0.50429645,1829.6,1829.5,11.3666637]
[1746584889163,0.50429645,1829.6,1829.5,5.9006894]
[1746584889463,1.25819645,1829.6,1829.5,5.9006894]
[1746584890466,3.56195687,1829.6,1829.5,5.9006894]
[1746584891990,0.50429645,1829.6,1829.5,5.9006894]
[1746584895361,0.50429645,1829.6,1829.4,5.46606589]
[1746584895713,0.50429645,1829.6,1829.5,5.4659743]
[1746584896813,0.50429645,1829.6,1829.4,6.25530061]
[1746584897016,0.50429645,1829.6,1829.4,10.93219562]
[1746584897187,8.5433984,1829.8,1829.4,10.93219562]
[1746584897502,10.2862924,1829.8,1829.4,10.93219562]
[1746584897799,0.50333687,1829.7,1829.4,10.93218122]
[1746584897978,0.50333687,1829.7,1829.4,5.46608621]
[1746584898303,0.50333687,1829.6,1829.4,10.93217091]
[1746584898598,0.50333687,1829.6,1829.4,5.4660847]
[1746584898891,0.50333687,1829.7,1829.4,5.4660847]
[1746584899204,0.50333687,1829.6,1829.3,16.83382721]
[1746584899412,0.50333687,1829.6,1829.4,5.46623696]
[1746584899695,1.25603687,1829.5,1829.3,11.36455143]
[1746584900290,0.7527,1829.5,1829.1,6.8302]
[1746584900478,0.7527,1829.5,1829.1,5.46687978]
[1746584900479,5.46628311,1829.4,1829.1,5.46687978]
[1746584900673,1.05000467,1829.3,1829.1,11.36387978]
[1746584900965,0.50337636,1829.3,1829.1,11.36387978]
[1746584901165,6.21884786,1829.5,1829.1,11.36387978]
[1746584901947,0.50351869,1829.4,1829.2,5.46684981]
[1746584902472,0.50351869,1829.3,1829.2,5.46684981]
[1746584903172,0.50351869,1829.4,1829.2,5.46684981]
[1746584904179,1.17574325,1829.4,1829.1,11.3630043]
[1746584904389,0.50351869,1829.3,1829.1,11.3620043]
[1746584904746,0.50351869,1829.3,1829.1,5.895]
[1746584904964,1.29491869,1829.3,1829.1,5.894]
[1746584905373,2.30376042,1829.2,1828.8,16.97582504]
[1746584905676,0.7639,1829.1,1828.8,17.40194694]
[1746584905878,0.7639,1829.1,1828.8,11.36194694]
[1746584906050,0.7639,1829.1,1828.8,16.82979042]
[1746584906248,0.50351869,1829.0,1828.8,16.82979042]
[1746584907173,0.50351869,1829.0,1828.9,5.46776751]
[1746584911883,0.50351869,1829.0,1828.8,5.46787498]
[1746584912042,0.50351869,1828.9,1828.8,5.46787498]
[1746584912586,0.50351869,1829.0,1828.7,11.35818181]
[1746584912786,1.17699182,1829.0,1828.7,11.35818181]
[1746584912962,0.50351869,1828.9,1828.7,11.35818181]
[1746584913148,0.50351869,1828.9,1828.7,16.82635756]
[1746584913353,0.50351869,1828.9,1828.7,16.82533968]
[1746584913551,0.50351869,1828.9,1828.7,11.35716393]
[1746584913896,0.50351869,1828.9,1828.7,11.35715884]
[1746584914244,0.50351869,1829.0,1828.7,11.35715884]
[1746584914755,0.50351869,1828.9,1828.8,5.46806649]
[1746584915285,0.50351869,1829.0,1828.8,5.46806649]
[1746584915589,0.50351869,1829.0,1828.7,11.35721694]
[1746584915881,0.50351869,1828.9,1828.7,11.35721694]
[1746584916084,0.50351869,1829.0,1828.7,11.35721694]
[1746584916384,0.50351869,1829.0,1828.7,16.82538789]
[1746584916681,0.50351869,1828.9,1828.8,5.46803885]
[1746584917252,0.50351869,1829.0,1828.8,5.46803885]
[1746584917888,0.50351869,1828.9,1828.8,5.46803885]
[1746584918487,0.7639,1829.1,1828.8,5.46803885]
[1746584918689,0.5039601,1828.9,1828.8,5.46803885]
[1746584923494,0.5039601,1828.9,1828.7,11.35717095]
[1746584923659,0.5039601,1828.9,1828.7,16.82535191]
[1746584924063,0.5039601,1828.8,1828.7,11.35717095]
[1746584924468,0.5039601,1829.0,1828.7,11.35717095]
[1746584924664,1.17747544,1829.0,1828.7,11.35717095]
[1746584924884,0.5039601,1828.9,1828.7,16.825338]
[1746584925276,0.5039601,1828.9,1828.8,5.46806649]
[1746584925599,6.2311933,1829.1,1828.8,5.46806649]
[1746584925898,0.50408429,1828.9,1828.8,5.46806649]
[1746584927206,0.50408429,1828.9,1828.7,11.35716705]
[1746584927520,0.50408429,1828.8,1828.7,11.35716705]
[1746584934740,0.50408429,1828.8,1828.7,5.46816705]
[1746584935031,0.50408429,1828.8,1828.7,11.34316705]
[1746584936237,0.50408429,1828.8,1828.7,11.34216705]
[1746584940422,0.50408429,1828.8,1828.7,12.15446705]
[1746584940622,0.50408429,1828.8,1828.7,13.916765]
[1746584941477,0.50408429,1828.8,1828.7,12.15446705]
[1746584942262,0.50408429,1828.8,1828.7,24.62946705]
[1746584942857,0.50408429,1829.5,1829.4,5.46627309]
[1746584943163,0.50408429,1829.5,1829.4,5.52093357]
[1746584943321,0.50408429,1829.5,1829.4,5.46627309]
[1746584944159,0.50408429,1829.5,1829.4,5.52092862]
[1746584944662,0.50408429,1829.7,1829.5,5.46588158]
[1746584945307,0.50408429,1829.6,1829.4,10.93212888]
[1746584945478,0.50408429,1829.6,1829.5,5.4659743]
[1746584946002,0.50408429,1829.7,1829.5,5.4659743]
[1746584946390,0.50408429,1829.6,1829.5,5.4659743]
[1746584947999,0.7947,1829.8,1829.5,5.4659743]
[1746584948492,0.50327712,1829.7,1829.6,5.46566947]
[1746584948662,0.50327712,1829.7,1829.6,1.09862989]
[1746584949073,0.50327712,1829.7,1829.5,5.52043083]
[1746584949270,0.7947,1829.8,1829.6,5.46567555]
[1746584949474,0.8293,1830.0,1829.8,5.46494678]
[1746584949709,6.7133,1830.2,1830.0,5.46448046]
[1746584950082,0.50323533,1830.1,1830.0,5.46448046]
[1746584950491,0.50323533,1830.1,1829.9,5.46458368]
[1746584950811,6.7133,1830.2,1829.9,5.46458368]
[1746584950812,6.7133,1830.2,1829.9,6.55753282]
[1746584951111,6.7133,1830.2,1829.9,5.46458368]
[1746584951473,6.7133,1830.2,1830.0,5.46447514]
[1746584952087,6.7133,1830.2,1829.9,5.46458274]
[1746584952515,12.17721286,1830.2,1829.9,5.46458274]
[1746584953082,6.7133,1830.2,1829.9,5.46458274]
[1746584953390,6.7133,1830.2,1829.9,6.55754663]
[1746584957480,6.7133,1830.2,1829.9,6.55751432]
[1746584958219,3.8293,1830.2,1829.9,6.55751432]
[1746584958440,0.8311,1830.4,1830.1,5.46400992]
[1746584958904,0.8311,1830.4,1830.1,5.46398024]
[1746584959289,0.8311,1830.4,1830.1,1.0982985]
[1746584959520,0.8311,1830.4,1830.1,5.46393913]
[1746584959890,0.8311,1830.4,1830.2,5.46387919]
[1746584961231,0.8311,1830.4,1830.3,5.4635852]
[1746584961395,9.37586393,1830.6,1830.3,5.4635852]
[1746584961822,14.83855723,1830.6,1830.3,5.4635852]
[1746584962128,6.6627,1830.6,1830.4,5.46318069]
[1746584962330,6.26486404,1830.8,1830.5,0.05462909]
[1746584962491,0.8027,1830.5,1830.2,5.46372732]
[1746584964142,0.8027,1830.5,1830.1,17.35902153]
[1746584964441,6.26570024,1830.5,1830.1,11.31902153]
[1746584965046,2.30376042,1830.4,1830.0,6.24576246]
[1746584965254,2.30376042,1830.4,1830.1,5.46407173]
[1746584965447,0.8027,1830.5,1830.2,5.46387607]
[1746584965945,0.8027,1830.5,1830.3,5.46357815]
[1746584967349,0.8071,1830.8,1830.4,5.46303735]
[1746584967520,9.26921353,1830.8,1830.4,5.46328671]
[1746584967725,9.26921353,1830.8,1830.4,10.92637215]
[1746584968037,0.50194647,1830.7,1830.4,5.46307587]
[1746584968416,0.50194647,1830.7,1830.5,5.46295933]
[1746584968616,9.26921353,1830.8,1830.5,5.46295933]
[1746584968816,9.26921353,1830.8,1830.4,5.4630851]
[1746584969029,9.26921353,1830.8,1830.4,5.51771093]
[1746584969350,9.67582865,1830.8,1830.4,6.75068455]
[1746584969549,0.50214058,1830.7,1830.4,6.75068455]
[1746584969748,0.50214058,1830.7,1830.4,6.63092455]
[1746584969913,9.67582865,1830.8,1830.4,6.63092455]
[1746584970286,9.67582865,1830.8,1830.4,6.68555037]
[1746584970417,3.8071,1830.8,1830.5,5.4628524]
[1746584970616,0.50239372,1830.7,1830.5,5.4628524]
[1746584970926,0.50239372,1830.7,1830.5,6.67223009]
[1746584971423,9.26924,1830.8,1830.5,5.4628524]
[1746584971631,9.26924,1830.8,1830.4,5.46309739]
[1746584971956,3.8071,1830.8,1830.5,5.46281584]
[1746584972151,0.50276022,1830.7,1830.5,5.46281584]
[1746584972655,3.8071,1830.8,1830.5,5.46281584]
[1746584972860,8.52820928,1830.7,1830.3,5.4634227]
[1746584973570,0.50319085,1830.6,1830.4,5.46327536]
[1746584974061,0.50319085,1830.5,1830.4,5.46327536]
[1746584974266,0.50319085,1830.5,1830.3,10.92678986]
[1746584974558,0.50319085,1830.6,1830.3,5.46336716]
[1746584974751,0.50319085,1830.6,1830.4,5.46328196]
[1746584974927,0.50319085,1830.5,1830.4,5.46328196]
[1746584975276,0.50319085,1830.6,1830.4,5.46328196]
[1746584975460,0.50319085,1830.6,1830.4,5.46310294]
[1746584975762,0.50319085,1830.5,1830.4,5.46310294]
[1746584975964,0.50319085,1830.5,1830.3,10.92685569]
[1746584976131,0.50319085,1830.5,1830.3,12.60444126]
[1746584976331,0.50319085,1830.6,1830.3,12.60444126]
[1746584976659,0.50319085,1830.5,1830.3,12.60444126]
[1746584976862,0.50319085,1830.5,1830.4,5.46328671]
[1746584977031,0.50319085,1830.6,1830.4,5.46328671]
[1746584977559,0.50319085,1830.5,1830.3,10.92678994]
[1746584977765,0.50319085,1830.5,1830.3,5.46338523]
[1746584978059,0.50319085,1830.4,1830.3,5.46338523]
[1746584978361,0.50319085,1830.6,1830.3,5.46338523]
[1746584978944,0.50319085,1830.5,1830.3,5.46338523]
[1746584979145,0.50319085,1830.4,1830.3,5.46338523]
[1746584980869,0.50319085,1830.4,1830.2,5.46372506]
[1746584981062,6.72468837,1830.4,1830.0,5.46431206]
[1746584981262,0.50319085,1830.3,1830.1,5.46409193]
[1746584981578,0.50319085,1830.3,1830.1,10.92807489]
[1746584981737,0.50319085,1830.2,1830.1,5.46398296]
[1746584983779,0.50319085,1830.2,1830.0,10.92863655]
[1746584983983,0.50319085,1830.2,1830.0,5.46428119]
[1746584984339,0.7669,1830.1,1829.9,6.04]
[1746584985334,0.50319085,1830.0,1829.9,11.5047254]
[1746584985539,0.50319085,1830.0,1829.9,5.4647254]
[1746584989767,0.50319085,1830.2,1829.9,5.46460022]
[1746584990371,0.50319085,1830.1,1829.9,5.46460022]
[1746584991172,0.50319085,1830.0,1829.9,5.46460022]
[1746584993370,0.50319085,1830.2,1829.9,5.46460022]
[1746584993575,0.50319085,1830.2,1830.0,5.46433572]
[1746584994173,0.50319085,1830.1,1830.0,5.46433572]
[1746584996681,0.50319085,1830.1,1829.9,5.46458766]
[1746584996880,0.50319085,1830.0,1829.9,5.46458766]
[1746584997246,0.50319085,1830.2,1829.9,5.46458766]
[1746584997447,1.17649913,1830.2,1829.9,5.46458766]
[1746584997788,0.50319085,1830.1,1829.9,5.46458766]
[1746584998077,0.50319085,1830.0,1829.9,5.46455552]
[1746584998579,0.50319085,1830.2,1830.0,5.46443387]
[1746584998878,0.50319085,1830.1,1830.0,5.46443387]
[1746584999255,0.50319085,1830.1,1829.9,5.4645816]
[1746584999778,0.50319085,1830.0,1829.7,6.2807904]
[1746584999983,1.88823941,1830.0,1829.7,11.2940904]
[1746585000301,1.88823941,1830.0,1829.8,5.46495659]
[1746585000450,5.46400628,1830.2,1829.8,5.46486041]
[1746585000451,0.50319085,1829.9,1829.8,5.46486041]
[1746585001162,0.50319085,1830.1,1829.9,5.46452123]
[1746585001577,0.50319085,1830.0,1829.9,5.46452123]
[1746585001784,0.50319085,1830.0,1829.8,5.4648765]
[1746585002399,0.50319085,1830.0,1829.7,5.46519843]
[1746585002718,0.50319085,1829.9,1829.7,10.93035039]
[1746585002921,0.50319085,1829.9,1829.8,5.46507815]
[1746585003101,0.50319085,1829.8,1829.7,5.46515196]
[1746585004772,0.50319085,1829.8,1829.7,5.46537683]
[1746585011513,0.50319085,1829.8,1829.7,5.52002703]
[1746585011714,0.50319085,1830.1,1829.9,5.46473427]
[1746585012081,0.50319085,1830.0,1829.9,5.46473427]
[1746585017313,0.50319085,1830.0,1829.8,5.51954992]
[1746585017611,0.50319085,1829.9,1829.8,5.51954992]
[1746585018053,0.50319085,1829.9,1829.8,5.46490576]
[1746585018251,0.50319085,1829.9,1829.7,5.46519779]
[1746585018442,1.25849085,1829.9,1829.7,11.28319779]
[1746585018643,0.50319085,1829.8,1829.7,11.28319779]
[1746585019261,0.50319085,1829.8,1829.6,5.46555356]
[1746585019468,0.50319085,1829.7,1829.5,5.46584834]